fUST/lending_fUST_20251001
["ID","MTS","AMOUNT","RATE_DAILY","PERIOD"]
[388621390,1759267838391,-299.15124357,0.00021642,2]
[388621391,1759267838400,-500.0,0.00021642,2]
[388621392,1759267838410,-500.0,0.00021642,2]
[388621393,1759267838419,-500.0,0.00021642,2]
[388621394,1759267838429,-450.46874696,0.00021642,2]
[388621395,1759267838439,-500.0,0.00021642,2]
[388621396,1759267838448,-159.93226083,0.00021642,2]
[388621397,1759267838457,-500.0,0.00021642,2]
[388621398,1759267838466,-500.0,0.00021642,2]
[388621399,1759267838475,-500.0,0.00021642,2]
[388621400,1759267838483,-500.0,0.00021642,2]
[388621401,1759267838492,-465.61858924,0.00021642,2]
[388621402,1759267838501,-500.0,0.00021642,2]
[388621403,1759267838511,-500.0,0.00021642,2]
[388621404,1759267838520,-89.67367501,0.00021642,2]
[388621405,1759267838532,-410.32632499,0.00021642,2]
[388621406,1759267838542,-500.0,0.00021642,2]
[388621407,1759267838552,-500.0,0.00021642,2]
[388621408,1759267838561,-500.0,0.00021642,2]
[388621409,1759267838570,-500.0,0.00021642,2]
[388621410,1759267838579,-500.0,0.00021642,2]
[388621411,1759267838588,-500.0,0.00021642,2]
[388621412,1759267838597,-500.0,0.00021642,2]
[388621413,1759267838607,-500.0,0.00021642,2]
[388621414,1759267838616,-500.0,0.00021642,2]
[388621415,1759267838626,-500.0,0.00021642,2]
[388621416,1759267838635,-500.0,0.00021642,2]
[388621417,1759267838644,-500.0,0.00021642,2]
[388621418,1759267838653,-500.0,0.00021642,2]
[388621419,1759267838662,-500.0,0.00021642,2]
[388621420,1759267838672,-500.0,0.00021642,2]
[388621421,1759267838681,-232.28768952,0.00021642,2]
[388621422,1759267838690,-500.0,0.00021642,2]
[388621423,1759267838699,-500.0,0.00021642,2]
[388621424,1759267838709,-171.82900487,0.00021672,2]
[388621425,1759267838718,-500.0,0.00021672,2]
[388621426,1759267838727,-500.0,0.00021672,2]
[388621427,1759267838736,-273.50024217,0.00021672,2]
[388621428,1759267838745,-500.0,0.00021672,2]
[388621429,1759267838755,-500.0,0.00021672,2]
[388621430,1759267838764,-500.0,0.00021672,2]
[388621431,1759267838773,-77.59412846,0.00021672,2]
[388621432,1759267838830,-422.40587154,0.00021672,2]
[388621433,1759267838840,-86.91425433,0.00021672,2]
[388621434,1759267838852,-363.95058371,0.00021672,2]
[388621435,1759267838861,-361.07221131,0.00021672,2]
[388621436,1759267838873,-138.92778869,0.00021672,2]
[388621437,1759267838882,-500.0,0.00021672,2]
[388621438,1759267838892,-438.33243904,0.00021672,2]
[388621439,1759267838903,-61.66756096,0.00021672,2]
[388621440,1759267838913,-245.87073021,0.00021673,2]
[388621441,1759267838922,-501.83698182,0.00021673,2]
[388621442,1759267838932,-501.20766255,0.00021673,2]
[388621443,1759267838941,-501.24232443,0.00021673,2]
[388621444,1759267838950,-400.0,0.00021673,2]
[388621445,1759267838960,-1257.44642792,0.00021673,2]
[388621448,1759267840063,-440.22699263,0.00021673,2]
[388621449,1759267840075,-8529.51735415,0.00021673,2]
[388621473,1759267843538,-500.0,0.00021642,2]
[388621475,1759267843548,-2377.36223478,0.00021673,2]
[388621512,1759267846289,-7224.01180788,0.00021673,2]
[388621513,1759267846300,-1085.04278039,0.00021673,2]
[388624348,1759268283657,281.39,0.00017982,2]
[388624366,1759268742360,1137.653954,0.00034855,120]
[388624460,1759269038375,-1185.473631,0.00019937,2]
[388624461,1759269038386,-1200.0,0.00020421,2]
[388624462,1759269038396,-300.0,0.00020421,2]
[388624463,1759269038405,-300.0,0.00020421,2]
[388624465,1759269038415,-239.80456634,0.00020421,2]
[388624614,1759269043790,-960.19543366,0.00020421,2]
[388624615,1759269043800,-8594.6756478,0.00020422,2]
[388624616,1759269043809,-666.0,0.00020643,2]
[388624617,1759269043819,-500.0,0.00020673,2]
[388624618,1759269043828,-504.85673294,0.00020673,2]
[388624619,1759269043837,-1611.7083561,0.00020679,2]
[388624620,1759269043846,-500.0,0.00020679,2]
[388624621,1759269043855,-386.22275148,0.00020679,2]
[388624622,1759269043864,-500.0,0.00020679,2]
[388624623,1759269043873,-500.0,0.00020679,2]
[388624625,1759269043882,-500.0,0.00020679,2]
[388624626,1759269043891,-422.12791595,0.00020679,2]
[388624627,1759269043900,-500.0,0.00020679,2]
[388624628,1759269043909,-336.80897986,0.00020679,2]
[388624629,1759269043919,-500.0,0.00020679,2]
[388624630,1759269043928,-500.0,0.00020679,2]
[388624631,1759269043937,-500.0,0.00020679,2]
[388624632,1759269043946,-500.0,0.00020679,2]
[388624633,1759269043955,-500.0,0.00020679,2]
[388624634,1759269044045,-581.46594175,0.00020679,2]
[388624635,1759269044055,-500.0,0.00020679,2]
[388624636,1759269044065,-500.0,0.00020679,2]
[388624637,1759269044075,-500.0,0.00020679,2]
[388624638,1759269044085,-500.0,0.00020679,2]
[388624639,1759269044096,-500.0,0.00020679,2]
[388624640,1759269044106,-500.0,0.00020679,2]
[388624641,1759269044116,-500.0,0.00020679,2]
[388624642,1759269044126,-500.0,0.00020679,2]
[388624643,1759269044135,-500.0,0.00020679,2]
[388624644,1759269044145,-500.0,0.00020679,2]
[388624645,1759269044155,-500.0,0.00020679,2]
[388624646,1759269044165,-500.0,0.00020679,2]
[388624647,1759269044176,-573.22876895,0.00020679,2]
[388624648,1759269044186,-500.0,0.00020679,2]
[388624649,1759269044195,-191.45016952,0.0002068,2]
[388624650,1759269044205,-500.0,0.0002068,2]
[388624651,1759269044215,-500.0,0.0002068,2]
[388624652,1759269044225,-500.0,0.0002068,2]
[388624653,1759269044235,-500.0,0.0002068,2]
[388624654,1759269044244,-500.0,0.0002068,2]
[388624655,1759269044254,-500.0,0.0002068,2]
[388624656,1759269044263,-500.0,0.0002068,2]
[388624657,1759269044272,-500.0,0.0002068,2]
[388624658,1759269044282,-500.0,0.0002068,2]
[388624659,1759269044291,-500.0,0.0002068,2]
[388624660,1759269044301,-500.0,0.0002068,2]
[388624661,1759269044310,-465.60538663,0.0002068,2]
[388624662,1759269044319,-500.0,0.0002068,2]
[388624663,1759269044328,-14011.43089365,0.0002068,2]
[388624664,1759269044337,-14660.6592045,0.00020681,2]
[388624665,1759269044347,-1000.0,0.00021221,2]
[388624666,1759269044356,-151.10493717,0.00021659,2]
[388624667,1759269044366,-1208.3314457,0.00021664,2]
[388624668,1759269044375,-312.6522228,0.00021664,2]
[388624669,1759269044385,-1067.0281661,0.00021664,2]
[388624670,1759269044394,-222.7612298,0.00021664,2]
[388624671,1759269044403,-384.3857286,0.00021664,2]
[388624672,1759269044413,-500.0,0.00021664,2]
[388624673,1759269044422,-500.0,0.00021673,2]
[388624674,1759269044431,-501.77234977,0.00021673,2]
[388624675,1759269044440,-690.59343277,0.00021685,2]
[388624676,1759269044449,-1055.11175497,0.00021688,2]
[388624677,1759269044458,-1500.0,0.00021768,2]
[388624678,1759269044469,-322.0,0.00021903,2]
[388624679,1759269044478,-500.0,0.00021938,2]
[388624680,1759269044487,-500.0,0.00022212,2]
[388624681,1759269044496,-1680.0,0.00022227,2]
[388624682,1759269044505,-420.0,0.00022227,2]
[388624683,1759269044514,-297.0,0.00022227,2]
[388624684,1759269044523,-2000.0,0.00022316,2]
[388624685,1759269044532,-1680.0,0.00022333,2]
[388624686,1759269044541,-500.0,0.00022486,2]
[388624687,1759269044552,-151.0,0.00022502,2]
[388624688,1759269044561,-151.0,0.00022502,2]
[388624689,1759269044570,-1143.6904702,0.00022576,2]
[388624690,1759269044579,-500.0,0.0002276,2]
[388624691,1759269044588,-151.0,0.00022776,2]
[388624692,1759269044600,-160.0,0.00022813,2]
[388624693,1759269044609,-2500.0,0.00022864,2]
[388624694,1759269044618,-180.0,0.00023,7]
[388624695,1759269044629,-239.49820303,0.00023034,2]
[388624696,1759269044640,-151.0,0.0002305,2]
[388624697,1759269044649,-151.0,0.00023324,2]
[388624698,1759269044658,-260.0,0.0002336,2]
[388624699,1759269044668,-3000.0,0.00023412,2]
[388624700,1759269044678,-500.0,0.00023465,2]
[388624701,1759269044687,-168.34882629,0.00023598,2]
[388624702,1759269044696,-333.0,0.00023649,2]
[388624703,1759269044705,-500.0,0.0002365,2]
[388624704,1759269044714,-500.0,0.0002365,2]
[388624705,1759269044723,-151.0,0.00023684,2]
[388624706,1759269044733,-656.6,0.00023778,2]
[388624707,1759269044742,-1067.0281661,0.00023849,2]
[388624708,1759269044750,-360.0,0.00023908,2]
[388624709,1759269044760,-13865.88,0.0002394,10]
[388624710,1759269044769,-16639.05,0.0002395,10]
[388624711,1759269044778,-293.36416222,0.0002395,10]
[388624712,1759269044787,-3500.0,0.0002396,2]
[388624713,1759269044796,-312.6522228,0.00023973,2]
[388624714,1759269044805,-450.2076028,0.0002398,2]
[388624715,1759269044814,-1799.02958079,0.0002398,2]
[388624716,1759269044823,-222.7612298,0.00023987,2]
[388624717,1759269044832,-384.3857286,0.00024053,2]
[388624718,1759269044842,-1208.3314457,0.00024164,2]
[388624719,1759269044851,-500.0,0.00024173,2]
[388624720,1759269044860,-500.0,0.00024173,2]
[388624721,1759269044869,-500.0,0.00024173,2]
[388624722,1759269044879,-584.25229651,0.00024173,2]
[388624723,1759269044888,-552.93017076,0.00024173,2]
[388624724,1759269044898,-500.0,0.00024173,2]
[388624725,1759269044908,-500.0,0.00024173,2]
[388624726,1759269044918,-500.0,0.00024173,2]
[388624727,1759269044927,-500.0,0.00024173,2]
[388624728,1759269044937,-500.0,0.00024173,2]
[388624729,1759269044946,-500.0,0.00024173,2]
[388624730,1759269044956,-500.0,0.00024173,2]
[388624731,1759269044965,-509.39889449,0.00024173,2]
[388624732,1759269044974,-500.0,0.00024173,2]
[388624733,1759269044983,-500.0,0.00024173,2]
[388624734,1759269044991,-160.0,0.00024178,10]
[388624735,1759269045000,-160.0,0.00024178,10]
[388624736,1759269045010,-155.86,0.00024178,3]
[388624737,1759269045019,-151.0,0.00024188,7]
[388624738,1759269045029,-19966.86,0.00024188,10]
[388624739,1759269045039,-720.0,0.00024192,2]
[388624740,1759269045048,-587.0,0.00024192,2]
[388624741,1759269045058,-1000.0,0.00024198,2]
[388624742,1759269045068,-1000.0,0.00024198,2]
[388624743,1759269045077,-500.0,0.00024356,2]
[388624744,1759269045087,-160.0,0.0002439,10]
[388624745,1759269045097,-960.0,0.00024424,2]
[388624746,1759269045106,-23960.24,0.00024449,10]
[388624747,1759269045115,-460.0,0.00024456,2]
[388624748,1759269045124,-311.72,0.00024459,3]
[388624749,1759269045133,-500.0,0.00024462,2]
[388624750,1759269045142,-233.92491258,0.00024463,10]
[388624751,1759269045152,-293.36416222,0.00024463,10]
[388624752,1759269045162,-233.92491258,0.00024463,10]
[388624753,1759269045171,-500.0,0.00024473,2]
[388624754,1759269045180,-500.0,0.00024473,2]
[388624755,1759269045189,-500.0,0.00024473,2]
[388624756,1759269045198,-309.00139026,0.00024473,2]
[388624757,1759269045206,-575.21749201,0.00024473,2]
[388624758,1759269045215,-500.0,0.00024473,2]
[388624759,1759269045224,-503.54277458,0.00024473,2]
[388624760,1759269045233,-500.0,0.00024473,2]
[388624761,1759269045242,-239.54850023,0.00024473,2]
[388624762,1759269045251,-500.0,0.00024473,2]
[388624763,1759269045260,-500.0,0.00024473,2]
[388624764,1759269045269,-3693.19195845,0.00024508,2]
[388624765,1759269045278,-380.0,0.00024658,2]
[388624766,1759269045286,-1000.0,0.00024721,2]
[388624767,1759269045295,-1000.0,0.00024721,2]
[388624768,1759269045306,-1000.0,0.00024721,2]
[388624769,1759269045315,-772.85351119,0.00024721,2]
[388624770,1759269045386,-1000.0,0.00024721,2]
[388624771,1759269045395,-1000.0,0.00024721,2]
[388624772,1759269045404,-505.01268871,0.00024721,2]
[388624773,1759269045413,-901.03875953,0.00024721,2]
[388624774,1759269045422,-1000.0,0.00024721,2]
[388624775,1759269045431,-1000.0,0.00024721,2]
[388624777,1759269045441,-1000.0,0.00024721,2]
[388624778,1759269045450,-824.6396608,0.00024721,2]
[388624780,1759269045459,-1500.0,0.00024746,2]
[388624782,1759269045468,-153.108758,0.0002477,7]
[388624784,1759269045477,-500.0,0.00024773,2]
[388624786,1759269045486,-281.3082,0.0002479,2]
[388624788,1759269045495,-151.0,0.000248,9]
[388624790,1759269045504,-1487.23743846,0.000248,2]
[388624792,1759269045512,-2568.64231984,0.00024804,2]
[388624794,1759269045522,-150.0,0.00024873,2]
[388624796,1759269045531,-623.44,0.0002489,3]
[388624798,1759269045540,-467.6,0.0002489,3]
[388624800,1759269045549,-1487.23743846,0.0002489,2]
[388624802,1759269045558,-232.696,0.00024899,2]
[388624804,1759269045568,-49930.0029278,0.000249,2]
[388624806,1759269045577,-1000.0,0.00024904,2]
[388624808,1759269045586,-33286.6686185,0.00025,2]
[388624810,1759269045596,-1982.98325128,0.00025,2]
[388624812,1759269045605,-560.0,0.00025004,2]
[388624814,1759269045614,-3292.959102,0.00025021,2]
[388624816,1759269045624,-976.63608635,0.00025021,2]
[388624818,1759269045637,-1000.0,0.00025021,2]
[388624820,1759269045646,-504.43716036,0.00025021,2]
[388624822,1759269045655,-1000.0,0.00025021,2]
[388624824,1759269045664,-1000.0,0.00025021,2]
[388624826,1759269045674,-1000.0,0.00025021,2]
[388624828,1759269045684,-150.0,0.00025073,2]
[388624830,1759269045693,-151.0,0.000252,10]
[388624832,1759269045703,-2355.93,0.000252,2]
[388624834,1759269045712,-1500.0,0.00025268,2]
[388624836,1759269045721,-1001.11923934,0.00025268,2]
[388624838,1759269045730,-1005.68555188,0.00025268,2]
[388624840,1759269045739,-1241.67724553,0.00025268,2]
[388624842,1759269045748,-1613.79958107,0.00025268,2]
[388624844,1759269045757,-1021.6774635,0.00025268,2]
[388624846,1759269045766,-1500.0,0.00025268,2]
[388624848,1759269045775,-1648.06373488,0.00025294,2]
[388624850,1759269045784,-1000.0,0.00025321,2]
[388624852,1759269045794,-250.0,0.00025421,2]
[388624854,1759269045803,-1034.31201005,0.00025451,2]
[388624856,1759269045812,-311.72,0.00025548,3]
[388624858,1759269045821,-660.0,0.00025552,2]
[388624860,1759269045831,-1046.22359938,0.00025568,2]
[388624862,1759269045840,-1500.0,0.00025568,2]
[388624864,1759269045849,-179.64445148,0.00025568,2]
[388624866,1759269045858,-8321.66715463,0.00025572,2]
[388624867,1759269045867,-495.74581282,0.00025572,2]
[388624868,1759269045876,-151.0,0.000256,11]
[388624869,1759269045885,-300.0,0.00025621,2]
[388624871,1759269045895,-160.0,0.00025662,2]
[388624873,1759269045904,-151.0,0.00025716,2]
[388624875,1759269045913,-413.46167769,0.00025716,2]
[388624877,1759269045923,-200.0,0.00025716,2]
[388624879,1759269045931,-200.0,0.00025716,2]
[388624881,1759269045942,-250.0,0.00025716,2]
[388624883,1759269045951,-200.0,0.00025716,2]
[388624885,1759269045960,-250.0,0.00025716,2]
[388624887,1759269045969,-200.0,0.00025716,2]
[388624889,1759269045978,-200.0,0.00025716,2]
[388624891,1759269045987,-250.0,0.00025716,2]
[388624893,1759269045996,-200.0,0.00025716,2]
[388624895,1759269046006,-250.0,0.00025716,2]
[388624897,1759269046015,-200.0,0.00025716,2]
[388624899,1759269046025,-250.0,0.00025716,2]
[388624901,1759269046034,-200.0,0.00025716,2]
[388624903,1759269046044,-250.0,0.00025716,2]
[388624905,1759269046053,-200.0,0.00025716,2]
[388624906,1759269046062,-250.0,0.00025716,2]
[388624907,1759269046071,-250.0,0.00025716,2]
[388624908,1759269046079,-250.0,0.00025716,2]
[388624909,1759269046090,-250.0,0.00025716,2]
[388624910,1759269046099,-250.0,0.00025716,2]
[388624911,1759269046108,-250.0,0.00025716,2]
[388624912,1759269046118,-250.0,0.00025716,2]
[388624913,1759269046127,-250.0,0.00025716,2]
[388624914,1759269046136,-282.15011065,0.00025716,2]
[388624915,1759269046146,-500.0,0.00025716,2]
[388624916,1759269046156,-500.0,0.00025716,2]
[388624917,1759269046165,-500.0,0.00025716,2]
[388624918,1759269046174,-500.0,0.00025716,2]
[388624919,1759269046183,-500.0,0.00025716,2]
[388624920,1759269046192,-500.0,0.00025716,2]
[388624921,1759269046201,-500.0,0.00025716,2]
[388624922,1759269046210,-500.0,0.00025716,2]
[388624923,1759269046219,-500.0,0.00025716,2]
[388624924,1759269046227,-500.0,0.00025716,2]
[388624925,1759269046236,-500.0,0.00025716,2]
[388624926,1759269046245,-500.0,0.00025716,2]
[388624927,1759269046254,-500.0,0.00025716,2]
[388624928,1759269046263,-500.0,0.00025716,2]
[388624929,1759269046272,-250.0,0.00025741,2]
[388624930,1759269046281,-2000.0,0.00025816,2]
[388624931,1759269046290,-2000.0,0.00025816,2]
[388624932,1759269046300,-623.44,0.00025829,3]
[388624933,1759269046310,-605.85078569,0.00025868,2]
[388624934,1759269046319,-350.0,0.00025968,2]
[388624935,1759269046328,-1672.073523,0.00026,30]
[388624936,1759269046336,-1067.0281661,0.00026033,2]
[388624937,1759269046345,-33286.6686185,0.00026097,2]
[388624938,1759269046355,-1982.98325128,0.00026097,2]
[388624939,1759269046364,-151.0,0.000261,14]
[388624940,1759269046373,-760.0,0.000261,2]
[388624941,1759269046383,-2000.0,0.00026116,2]
[388624942,1759269046392,-450.0,0.00026168,2]
[388624943,1759269046401,-1246.88,0.0002626,3]
[388624944,1759269046410,-151.0,0.00026264,2]
[388624945,1759269046420,-312.6522228,0.00026282,2]
[388624946,1759269046429,-222.7612298,0.00026311,2]
[388624947,1759269046438,-823.0,0.00026331,2]
[388624948,1759269046447,-2500.0,0.00026364,2]
[388624949,1759269046457,-2500.0,0.00026364,2]
[388624950,1759269046466,-384.3857286,0.00026442,2]
[388624951,1759269046476,-151.0,0.000265,19]
[388624952,1759269046485,-652.0,0.000265,2]
[388624953,1759269046494,-310.16494935,0.00026516,2]
[388624954,1759269046503,-1037.37946759,0.00026569,2]
[388624955,1759269046513,-4145.36835249,0.00026569,2]
[388624956,1759269046522,-229.49711045,0.00026569,2]
[388624957,1759269046531,-976.5338993,0.00026603,2]
[388624958,1759269046602,-731.89083871,0.00026648,2]
[388624959,1759269046806,-250.0,0.00025716,2]
[388624960,1759269046816,-250.0,0.00025716,2]
[388624961,1759269046825,-250.0,0.00025716,2]
[388624962,1759269046835,-208.38660597,0.00025716,2]
[388624963,1759269046849,-41.61339403,0.00025716,2]
[388624964,1759269046858,-250.0,0.00025716,2]
[388624965,1759269046868,-128.10916129,0.00026648,2]
[388624966,1759269046877,-2500.0,0.00026664,2]
[388624967,1759269046888,-230.27744468,0.00026665,2]
[388624974,1759269526387,-208.8691044,0.00030137,120]
[388624975,1759269526414,-975.18876768,0.0003016,120]
[388624976,1759269526443,-152.0,0.000311,120]
[388624977,1759269526471,-154.22,0.000329,60]
[388624978,1759269526495,-154.22,0.00033,60]
[388624979,1759269526519,-154.22,0.000331,60]
[388624980,1759269526545,-182.31684207,0.000332,117]
[388624981,1759269526570,-154.22,0.000332,60]
[388624982,1759269526595,-154.22,0.000333,60]
[388624983,1759269526619,-154.22,0.000334,60]
[388624984,1759269526644,-154.22,0.000335,60]
[388624985,1759269526669,-154.22,0.000336,60]
[388624986,1759269526693,-154.22,0.000337,60]
[388624987,1759269526717,-47737.2,0.000345,30]
[388624988,1759269526742,-3655.78584535,0.000346,120]
[388624989,1759269526768,-152.0,0.000346,120]
[388624990,1759269526796,-154.518533,0.000346,120]
[388624991,1759269526824,-1545.27713641,0.00034627,60]
[388624992,1759269526850,-153.66,0.00034669,120]
[388624993,1759269526874,-153.66,0.00034669,120]
[388624995,1759269526900,-370.42223155,0.00034676,34]
[388624996,1759269526925,-200.0,0.0003469,120]
[388624997,1759269526953,-176.8,0.00034719,60]
[388624998,1759269526986,-2087.19321301,0.00034745,60]
[388624999,1759269527016,-1000.72428664,0.00034771,60]
[388625000,1759269527041,-905.16313474,0.00034849,120]
[388625001,1759269527071,-305.137,0.00034855,60]
[388625002,1759269527097,-182.12,0.00034856,60]
[388625003,1759269527123,-233.92491258,0.00035,30]
[388625004,1759269527146,-160.0,0.00035,30]
[388625005,1759269527170,-160.0,0.00035,30]
[388625006,1759269527194,-293.36416222,0.00035,30]
[388625007,1759269527218,-160.0,0.00035,30]
[388625008,1759269527241,-160.0,0.00035,30]
[388625009,1759269527264,-150.0,0.00035,69]
[388625010,1759269527288,-246.62,0.000353,60]
[388625011,1759269527315,-154.518533,0.000353,60]
[388625012,1759269527340,-246.62,0.000354,60]
[388625013,1759269527365,-154.518533,0.00035486,60]
[388625014,1759269527468,-246.62,0.000355,60]
[388625015,1759269527494,-246.62,0.000356,60]
[388625016,1759269527519,-154.518533,0.00035672,60]
[388625017,1759269527543,-246.62,0.000357,60]
[388625018,1759269527570,-246.62,0.000358,60]
[388625019,1759269527596,-154.518533,0.00035858,60]
[388625020,1759269527621,-246.62,0.000359,60]
[388625021,1759269527645,-246.62,0.00036,60]
[388625022,1759269527670,-154.518533,0.00036044,60]
[388625023,1759269527694,-246.62,0.000361,60]
[388625024,1759269527717,-246.62,0.000362,60]
[388625025,1759269527741,-246.62,0.000363,60]
[388625026,1759269527764,-246.62,0.000364,60]
[388625027,1759269527789,-246.62,0.000365,60]
[388625028,1759269527813,-246.62,0.000366,60]
[388625029,1759269527837,-246.62,0.000367,60]
[388625030,1759269527861,-154.518533,0.00036781,120]
[388625031,1759269527885,-246.62,0.000368,60]
[388625032,1759269527910,-246.62,0.000369,60]
[388625033,1759269527933,-246.62,0.00037,60]
[388625034,1759269527956,-732.40042447,0.00037,120]
[388625035,1759269527979,-246.62,0.000371,60]
[388625036,1759269528005,-246.62,0.000372,60]
[388625037,1759269528028,-246.62,0.000373,60]
[388625038,1759269528052,-246.62,0.000374,60]
[388625039,1759269528076,-246.62,0.000375,60]
[388625040,1759269528100,-246.62,0.000376,60]
[388625041,1759269528125,-246.62,0.000377,60]
[388625042,1759269528151,-246.62,0.000378,60]
[388625043,1759269528176,-246.62,0.000379,60]
[388625044,1759269528203,-246.62,0.00038,60]
[388625045,1759269528228,-152.0,0.000381,120]
[388625046,1759269528252,-246.62,0.000381,60]
[388625047,1759269528276,-246.62,0.000382,60]
[388625048,1759269528300,-3038.25462756,0.00038225,30]
[388625049,1759269528327,-246.62,0.000383,60]
[388625050,1759269528353,-246.62,0.000384,120]
[388625051,1759269528377,-246.62,0.000385,120]
[388625052,1759269528403,-246.62,0.000386,120]
[388625053,1759269528428,-196.88,0.000387,120]
[388625054,1759269528453,-246.62,0.000387,120]
[388625055,1759269528480,-246.62,0.000388,120]
[388625056,1759269528506,-246.62,0.000389,120]
[388625057,1759269528531,-154.518533,0.00038961,120]
[388625058,1759269528622,-160.0,0.00039,30]
[388625059,1759269528647,-160.0,0.00039,120]
[388625060,1759269528671,-160.0,0.00039,120]
[388625061,1759269528695,-233.92491258,0.00039,120]
[388625062,1759269528719,-293.36416222,0.00039,120]
[388625063,1759269528742,-160.0,0.00039,30]
[388625064,1759269528765,-293.36416222,0.00039,30]
[388625065,1759269528789,-233.92491258,0.00039,30]
[388625066,1759269528814,-246.62,0.00039,120]
[388625067,1759269528840,-246.62,0.000391,120]
[388625068,1759269528868,-246.62,0.000392,120]
[388625069,1759269528894,-246.62,0.000393,120]
[388625070,1759269528920,-246.62,0.000394,120]
[388625071,1759269528946,-3038.25462756,0.00039443,33]
[388625072,1759269528974,-246.62,0.000395,120]
[388625073,1759269529002,-246.62,0.000396,120]
[388625074,1759269529027,-246.62,0.000397,120]
[388625075,1759269529055,-246.62,0.000398,120]
[388625076,1759269529080,-246.62,0.000399,120]
[388625077,1759269529104,-340.37597042,0.00039999,31]
[388625078,1759269529129,-446.71706222,0.00039999,31]
[388625079,1759269529153,-400.93434469,0.00039999,31]
[388625080,1759269529191,-500.0,0.00039999,31]
[388625081,1759269529233,-500.0,0.00039999,31]
[388625082,1759269529278,-500.0,0.00039999,31]
[388625083,1759269529318,-500.0,0.00039999,31]
[388625084,1759269529357,-500.0,0.00039999,31]
[388625085,1759269529396,-500.0,0.00039999,31]
[388625086,1759269529439,-500.0,0.00039999,31]
[388625087,1759269529471,-500.0,0.00039999,31]
[388625088,1759269529509,-500.0,0.00039999,31]
[388625089,1759269529543,-500.0,0.00039999,31]
[388625090,1759269529578,-393.8221315,0.00039999,31]
[388625091,1759269529613,-500.0,0.00039999,31]
[388625092,1759269529646,-500.0,0.00039999,31]
[388625093,1759269529680,-500.0,0.00039999,31]
[388625094,1759269529714,-500.0,0.00039999,31]
[388625095,1759269529750,-500.0,0.00039999,31]
[388625096,1759269529785,-500.0,0.00039999,31]
[388625097,1759269529819,-500.0,0.00039999,31]
[388625098,1759269529852,-500.0,0.00039999,31]
[388625099,1759269529887,-500.0,0.00039999,31]
[388625100,1759269529921,-500.0,0.00039999,31]
[388625101,1759269530055,-500.0,0.00039999,31]
[388625102,1759269530090,-246.62,0.0004,120]
[388625103,1759269530114,-160.0,0.0004,120]
[388625104,1759269530137,-160.0,0.0004,120]
[388625105,1759269530160,-2000.0,0.0004,120]
[388625106,1759269530186,-246.62,0.000401,120]
[388625107,1759269530211,-246.62,0.000402,120]
[388625108,1759269530234,-246.62,0.000403,120]
[388625109,1759269530259,-246.62,0.000404,120]
[388625110,1759269530283,-246.62,0.000405,120]
[388625111,1759269530307,-246.62,0.000406,120]
[388625112,1759269530330,-3038.25462756,0.00040661,36]
[388625113,1759269530354,-246.62,0.000407,120]
[388625114,1759269530377,-246.62,0.000408,120]
[388625115,1759269530400,-246.62,0.000409,120]